[Event "Titled Tuesday Blitz June 6 Late 2023"]
[White "Boder, Jan"]
[Black "Amanov, Zhanibek"]
[WhiteFideId "16243226"]
[BlackFideId "13700189"]
[WhiteElo "2241"]
[BlackElo "2134"]
[Result "1-0"]
[Round "7"]
[TimeControl "180+2"]
[Date "2023.06.07"]
[WhiteClock "0:00:09"]
[BlackClock "0:00:11"]
[Board "106"]

1. d4 {[%clk 0:03:00]}  d5 {[%clk 0:02:56]} 2. c4 {[%clk 0:03:00]}  c6 {[%clk 0:02:56]} 3. cxd5 {[%clk 0:02:59]}  cxd5 {[%clk 0:02:57]} 4. Nc3 {[%clk 0:03:00]}  Nf6 {[%clk 0:02:57]} 5. Bg5 {[%clk 0:03:01]}  Nc6 {[%clk 0:02:57]} 6. Nf3 {[%clk 0:02:52]}  e6 {[%clk 0:02:56]} 7. e3 {[%clk 0:02:53]}  Be7 {[%clk 0:02:56]} 8. Bd3 {[%clk 0:02:51]}  O-O {[%clk 0:02:55]} 9. O-O {[%clk 0:02:52]}  b6 {[%clk 0:02:55]} 10. a3 {[%clk 0:02:52]}  Bb7 {[%clk 0:02:54]} 11. b4 {[%clk 0:02:51]}  Rc8 {[%clk 0:02:54]} 12. Rc1 {[%clk 0:02:47]}  h6 {[%clk 0:02:51]} 13. Bh4 {[%clk 0:02:47]}  Ne4 {[%clk 0:02:25]} 14. Bxe7 {[%clk 0:02:44]}  Nxe7 {[%clk 0:02:09]} 15. Qb3 {[%clk 0:02:38]}  Nf5 {[%clk 0:01:55]} 16. Rc2 {[%clk 0:02:20]}  Nfd6 {[%clk 0:01:40]} 17. Rfc1 {[%clk 0:02:18]}  Nxc3 {[%clk 0:01:28]} 18. Rxc3 {[%clk 0:02:16]}  Qe7 {[%clk 0:01:16]} 19. Kf1 {[%clk 0:01:57]}  Rxc3 {[%clk 0:01:09]} 20. Rxc3 {[%clk 0:01:57]}  Rc8 {[%clk 0:01:10]} 21. Qc2 {[%clk 0:01:55]}  Qd8 {[%clk 0:01:07]} 22. Rxc8 {[%clk 0:01:54]}  Qxc8 {[%clk 0:01:04]} 23. Qxc8+ {[%clk 0:01:54]}  Bxc8 {[%clk 0:01:05]} 24. Ke2 {[%clk 0:01:55]}  f6 {[%clk 0:01:04]} 25. Kd2 {[%clk 0:01:54]}  Kf8 {[%clk 0:01:05]} 26. Kc3 {[%clk 0:01:54]}  Ke7 {[%clk 0:01:05]} 27. Nd2 {[%clk 0:01:50]}  e5 {[%clk 0:01:04]} 28. f4 {[%clk 0:01:45]}  exf4 {[%clk 0:01:00]} 29. exf4 {[%clk 0:01:46]}  Bf5 {[%clk 0:00:54]} 30. Be2 {[%clk 0:01:42]}  g5 {[%clk 0:00:33]} 31. g3 {[%clk 0:01:41]}  h5 {[%clk 0:00:21]} 32. fxg5 {[%clk 0:01:21]}  fxg5 {[%clk 0:00:22]} 33. Bf3 {[%clk 0:01:20]}  Ke6 {[%clk 0:00:18]} 34. h4 {[%clk 0:00:37]}  gxh4 {[%clk 0:00:11]} 35. gxh4 {[%clk 0:00:38]}  Nb5+ {[%clk 0:00:11]} 36. Kb2 {[%clk 0:00:36]}  Nxd4 {[%clk 0:00:11]} 37. Bxh5 {[%clk 0:00:36]}  Ke5 {[%clk 0:00:10]} 38. Bf7 {[%clk 0:00:29]}  Be6 {[%clk 0:00:06]} 39. Bg6 {[%clk 0:00:21]}  Ne2 {[%clk 0:00:04]} 40. h5 {[%clk 0:00:20]}  Nf4 {[%clk 0:00:04]} 41. Be8 {[%clk 0:00:19]}  Bg4 {[%clk 0:00:02]} 42. h6 {[%clk 0:00:18]}  Bf5 {[%clk 0:00:02]} 43. Nf3+ {[%clk 0:00:14]}  Ke4 {[%clk 0:00:03]} 44. Nh4 {[%clk 0:00:14]}  Bh7 {[%clk 0:00:03]} 45. Bc6 {[%clk 0:00:12]}  Ke5 {[%clk 0:00:02]} 46. Nf3+ {[%clk 0:00:11]}  Kd6 {[%clk 0:00:02]} 47. Ng5 {[%clk 0:00:11]}  Bg6 {[%clk 0:00:02]} 48. Ba4 {[%clk 0:00:07]}  Ne6 {[%clk 0:00:02]} 49. Nxe6 {[%clk 0:00:04]}  Kxe6 {[%clk 0:00:03]} 50. Bc2 {[%clk 0:00:03]}  Kf6 {[%clk 0:00:03]} 51. h7 {[%clk 0:00:02]}  Bxh7 {[%clk 0:00:02]} 52. Bxh7 {[%clk 0:00:03]}  Ke5 {[%clk 0:00:03]} 53. Kc3 {[%clk 0:00:03]}  Kd6 {[%clk 0:00:04]} 54. Kd2 {[%clk 0:00:04]}  Ke5 {[%clk 0:00:04]} 55. Kd3 {[%clk 0:00:05]}  Kd6 {[%clk 0:00:04]} 56. Bg8 {[%clk 0:00:05]}  Kc6 {[%clk 0:00:05]} 57. Kd4 {[%clk 0:00:05]}  Kb5 {[%clk 0:00:05]} 58. Kc3 {[%clk 0:00:05]}  Ka4 {[%clk 0:00:06]} 59. Kb2 {[%clk 0:00:05]}  d4 {[%clk 0:00:06]} 60. Bb3+ {[%clk 0:00:04]}  Kb5 {[%clk 0:00:06]} 61. Kc2 {[%clk 0:00:05]}  a5 {[%clk 0:00:06]} 62. bxa5 {[%clk 0:00:05]}  Kxa5 {[%clk 0:00:07]} 63. Kd3 {[%clk 0:00:05]}  Kb5 {[%clk 0:00:07]} 64. Kxd4 {[%clk 0:00:05]}  Ka5 {[%clk 0:00:08]} 65. Kc4 {[%clk 0:00:05]}  Ka6 {[%clk 0:00:08]} 66. Kb4 {[%clk 0:00:05]}  Ka7 {[%clk 0:00:08]} 67. Kb5 {[%clk 0:00:05]}  Kb7 {[%clk 0:00:09]} 68. Bd5+ {[%clk 0:00:06]}  Ka7 {[%clk 0:00:10]} 69. a4 {[%clk 0:00:07]}  Kb8 {[%clk 0:00:10]} 70. Kxb6 {[%clk 0:00:08]}  Kc8 {[%clk 0:00:11]} 71. a5 {[%clk 0:00:08]}  Kb8 {[%clk 0:00:11]} 72. a6 {[%clk 0:00:09]} 1-0


[Site "https://www.chess.com"]

[Event "Titled Tuesday Blitz June 6 Late 2023"]
[White "Gerbelli Neto, Eduardo"]
[Black "ArchibaldCerveza29"]
[WhiteFideId "2103281"]
[WhiteElo "2178"]
[BlackElo "2468"]
[Result "0-1"]
[Round "7"]
[TimeControl "180+2"]
[Date "2023.06.07"]
[WhiteClock "0:00:41"]
[BlackClock "0:01:21"]
[Board "113"]

1. e4 {[%clk 0:03:00]}  e5 {[%clk 0:02:55]} 2. Nf3 {[%clk 0:02:59]}  Nc6 {[%clk 0:02:54]} 3. d4 {[%clk 0:02:59]}  exd4 {[%clk 0:02:55]} 4. Bc4 {[%clk 0:03:00]}  Nf6 {[%clk 0:02:55]} 5. e5 {[%clk 0:02:57]}  d5 {[%clk 0:02:54]} 6. Bb5 {[%clk 0:02:56]}  Ne4 {[%clk 0:02:55]} 7. Nxd4 {[%clk 0:02:52]}  Bd7 {[%clk 0:02:55]} 8. Bxc6 {[%clk 0:02:49]}  bxc6 {[%clk 0:02:56]} 9. O-O {[%clk 0:02:46]}  Bc5 {[%clk 0:02:57]} 10. Be3 {[%clk 0:02:45]}  Bb6 {[%clk 0:02:56]} 11. f3 {[%clk 0:02:45]}  Ng5 {[%clk 0:02:56]} 12. f4 {[%clk 0:02:45]}  Ne4 {[%clk 0:02:56]} 13. Nd2 {[%clk 0:02:45]}  Nxd2 {[%clk 0:02:56]} 14. Qxd2 {[%clk 0:02:46]}  c5 {[%clk 0:02:57]} 15. Nb3 {[%clk 0:02:45]}  d4 {[%clk 0:02:57]} 16. Bf2 {[%clk 0:02:45]}  Bc6 {[%clk 0:02:58]} 17. f5 {[%clk 0:02:28]}  Qd5 {[%clk 0:02:55]} 18. Qg5 {[%clk 0:02:28]}  Kd7 {[%clk 0:02:42]} 19. e6+ {[%clk 0:02:16]}  Kc8 {[%clk 0:02:35]} 20. Qxg7 {[%clk 0:02:00]}  Kb7 {[%clk 0:02:35]} 21. exf7 {[%clk 0:02:00]}  Rhg8 {[%clk 0:02:32]} 22. fxg8=Q {[%clk 0:01:50]}  Rxg8 {[%clk 0:02:33]} 23. Qxg8 {[%clk 0:01:49]}  Qxg8 {[%clk 0:02:34]} 24. Bg3 {[%clk 0:01:49]}  Qd5 {[%clk 0:02:30]} 25. Rf2 {[%clk 0:01:45]}  c4 {[%clk 0:02:31]} 26. Nd2 {[%clk 0:01:19]}  d3 {[%clk 0:02:30]} 27. Nf3 {[%clk 0:01:17]}  Bxf2+ {[%clk 0:02:28]} 28. Bxf2 {[%clk 0:01:18]}  dxc2 {[%clk 0:02:26]} 29. Bd4 {[%clk 0:01:11]}  Qxf5 {[%clk 0:02:25]} 30. Kf2 {[%clk 0:01:05]}  Qd3 {[%clk 0:02:20]} 31. Be3 {[%clk 0:01:00]}  a5 {[%clk 0:01:46]} 32. Rc1 {[%clk 0:01:00]}  a4 {[%clk 0:01:37]} 33. Ne1 {[%clk 0:01:00]}  Qf5+ {[%clk 0:01:37]} 34. Ke2 {[%clk 0:00:54]}  Be4 {[%clk 0:01:38]} 35. Kd2 {[%clk 0:00:45]}  Qa5+ {[%clk 0:01:37]} 36. Ke2 {[%clk 0:00:44]}  Qd5 {[%clk 0:01:29]} 37. Nf3 {[%clk 0:00:41]}  Qb5 {[%clk 0:01:21]} 0-1


[Site "https://www.chess.com"]

[Event "Titled Tuesday Blitz June 6 Late 2023"]
[White "Ogreberbere"]
[Black "Omariev, Maksim"]
[BlackFideId "4193423"]
[WhiteElo "2188"]
[BlackElo "2411"]
[Result "0-1"]
[Round "7"]
[TimeControl "180+2"]
[Date "2023.06.07"]
[WhiteClock "0:00:01"]
[BlackClock "0:00:02"]
[Board "118"]

1. d4 {[%clk 0:02:47]}  d5 {[%clk 0:02:59]} 2. c4 {[%clk 0:02:47]}  e6 {[%clk 0:02:55]} 3. Nf3 {[%clk 0:02:45]}  Nf6 {[%clk 0:02:56]} 4. g3 {[%clk 0:02:44]}  Be7 {[%clk 0:02:56]} 5. Bg2 {[%clk 0:02:45]}  O-O {[%clk 0:02:57]} 6. O-O {[%clk 0:02:45]}  dxc4 {[%clk 0:02:56]} 7. Qc2 {[%clk 0:02:45]}  a6 {[%clk 0:02:56]} 8. a4 {[%clk 0:02:46]}  Nc6 {[%clk 0:02:56]} 9. Qxc4 {[%clk 0:02:41]}  Nb4 {[%clk 0:02:56]} 10. Bg5 {[%clk 0:02:30]}  b5 {[%clk 0:02:48]} 11. Qc1 {[%clk 0:02:15]}  Bb7 {[%clk 0:02:30]} 12. Rd1 {[%clk 0:02:13]}  h6 {[%clk 0:02:25]} 13. Bxf6 {[%clk 0:02:06]}  Bxf6 {[%clk 0:02:26]} 14. Nc3 {[%clk 0:01:56]}  Rb8 {[%clk 0:01:28]} 15. axb5 {[%clk 0:01:40]}  axb5 {[%clk 0:01:29]} 16. Ra7 {[%clk 0:01:23]}  Bxf3 {[%clk 0:01:15]} 17. Bxf3 {[%clk 0:01:20]}  Bxd4 {[%clk 0:01:16]} 18. Rb7 {[%clk 0:00:35]}  Rxb7 {[%clk 0:01:12]} 19. Bxb7 {[%clk 0:00:34]}  Qf6 {[%clk 0:00:56]} 20. Qf4 {[%clk 0:00:25]}  Bxc3 {[%clk 0:00:12]} 21. bxc3 {[%clk 0:00:25]}  Qxc3 {[%clk 0:00:11]} 22. Rc1 {[%clk 0:00:25]}  Qb2 {[%clk 0:00:08]} 23. Rxc7 {[%clk 0:00:24]}  Nd5 {[%clk 0:00:06]} 24. Bxd5 {[%clk 0:00:22]}  exd5 {[%clk 0:00:07]} 25. Rb7 {[%clk 0:00:19]}  Qxe2 {[%clk 0:00:06]} 26. Qd6 {[%clk 0:00:17]}  Qc4 {[%clk 0:00:05]} 27. Qd7 {[%clk 0:00:12]}  b4 {[%clk 0:00:04]} 28. Rc7 {[%clk 0:00:05]}  Qd3 {[%clk 0:00:03]} 29. Rb7 {[%clk 0:00:04]}  b3 {[%clk 0:00:03]} 30. Qb5 {[%clk 0:00:04]}  Qb1+ {[%clk 0:00:02]} 31. Kg2 {[%clk 0:00:03]}  Qe4+ {[%clk 0:00:02]} 32. Kg1 {[%clk 0:00:03]}  Qb1+ {[%clk 0:00:02]} 33. Kg2 {[%clk 0:00:03]}  Rc8 {[%clk 0:00:02]} 34. Qxb3 {[%clk 0:00:02]}  Qe4+ {[%clk 0:00:03]} 35. Kh3 {[%clk 0:00:01]}  Rf8 {[%clk 0:00:01]} 36. Rb8 {[%clk 0:00:01]}  Qe6+ {[%clk 0:00:01]} 37. Kg2 {[%clk 0:00:01]}  Qe4+ {[%clk 0:00:02]} 0-1


[Site "https://www.chess.com"]

[Event "Titled Tuesday Blitz June 6 Late 2023"]
[White "MrAnnihilation"]
[Black "Cluke86"]
[WhiteElo "2401"]
[BlackElo "2147"]
[Result "1/2-1/2"]
[Round "7"]
[TimeControl "180+2"]
[Date "2023.06.07"]
[WhiteClock "0:00:10"]
[BlackClock "0:00:03"]
[Board "121"]

1. e4 {[%clk 0:02:53]}  d6 {[%clk 0:02:59]} 2. d4 {[%clk 0:02:53]}  Nf6 {[%clk 0:02:59]} 3. Nc3 {[%clk 0:02:53]}  e5 {[%clk 0:02:59]} 4. dxe5 {[%clk 0:02:51]}  dxe5 {[%clk 0:03:00]} 5. Qxd8+ {[%clk 0:02:51]}  Kxd8 {[%clk 0:03:01]} 6. Bc4 {[%clk 0:02:51]}  Ke8 {[%clk 0:03:00]} 7. f3 {[%clk 0:02:50]}  c6 {[%clk 0:02:57]} 8. Be3 {[%clk 0:02:50]}  Nbd7 {[%clk 0:02:55]} 9. Nge2 {[%clk 0:02:41]}  Bc5 {[%clk 0:02:54]} 10. Kf2 {[%clk 0:02:41]}  a5 {[%clk 0:02:47]} 11. a4 {[%clk 0:02:18]}  Ke7 {[%clk 0:02:40]} 12. Nc1 {[%clk 0:02:14]}  Bxe3+ {[%clk 0:02:32]} 13. Kxe3 {[%clk 0:02:14]}  Nb6 {[%clk 0:02:32]} 14. Bb3 {[%clk 0:02:12]}  Be6 {[%clk 0:02:26]} 15. Bxe6 {[%clk 0:02:04]}  Kxe6 {[%clk 0:02:27]} 16. Nb3 {[%clk 0:02:02]}  Nfd7 {[%clk 0:02:26]} 17. Ke2 {[%clk 0:01:57]}  Rhd8 {[%clk 0:02:13]} 18. Rhd1 {[%clk 0:01:57]}  Nc4 {[%clk 0:02:10]} 19. Ra2 {[%clk 0:01:36]}  b6 {[%clk 0:02:08]} 20. Nb1 {[%clk 0:01:24]}  Nf8 {[%clk 0:02:04]} 21. Rxd8 {[%clk 0:01:22]}  Rxd8 {[%clk 0:02:05]} 22. N1d2 {[%clk 0:01:22]}  Nd6 {[%clk 0:01:57]} 23. Nc1 {[%clk 0:01:19]}  Kd7 {[%clk 0:01:55]} 24. Nd3 {[%clk 0:01:19]}  f6 {[%clk 0:01:53]} 25. c3 {[%clk 0:01:18]}  Ne6 {[%clk 0:01:52]} 26. Ke3 {[%clk 0:01:15]}  Ra8 {[%clk 0:01:44]} 27. g3 {[%clk 0:01:12]}  b5 {[%clk 0:01:43]} 28. f4 {[%clk 0:01:10]}  Nc4+ {[%clk 0:01:31]} 29. Ke2 {[%clk 0:00:50]}  Kd6 {[%clk 0:01:05]} 30. b3 {[%clk 0:00:42]}  Nxd2 {[%clk 0:01:02]} 31. Rxd2 {[%clk 0:00:43]}  exf4 {[%clk 0:00:53]} 32. gxf4 {[%clk 0:00:33]}  Ke7 {[%clk 0:00:52]} 33. Ke3 {[%clk 0:00:23]}  Rd8 {[%clk 0:00:49]} 34. Ra2 {[%clk 0:00:20]}  Ra8 {[%clk 0:00:41]} 35. f5 {[%clk 0:00:13]}  Nc7 {[%clk 0:00:37]} 36. axb5 {[%clk 0:00:08]}  cxb5 {[%clk 0:00:34]} 37. b4 {[%clk 0:00:04]}  a4 {[%clk 0:00:30]} 38. Nf4 {[%clk 0:00:02]}  Rd8 {[%clk 0:00:25]} 39. Nd3 {[%clk 0:00:01]}  Kd6 {[%clk 0:00:23]} 40. h4 {[%clk 0:00:02]}  Na8 {[%clk 0:00:20]} 41. Rg2 {[%clk 0:00:03]}  Rd7 {[%clk 0:00:18]} 42. Rd2 {[%clk 0:00:03]}  Kc6 {[%clk 0:00:17]} 43. Rg2 {[%clk 0:00:04]}  Nb6 {[%clk 0:00:17]} 44. e5 {[%clk 0:00:05]}  Nc4+ {[%clk 0:00:14]} 45. Ke4 {[%clk 0:00:06]}  Re7 {[%clk 0:00:10]} 46. e6 {[%clk 0:00:05]}  Nd6+ {[%clk 0:00:09]} 47. Kf4 {[%clk 0:00:05]}  Nc4 {[%clk 0:00:09]} 48. Nc5 {[%clk 0:00:06]}  a3 {[%clk 0:00:08]} 49. Ra2 {[%clk 0:00:06]}  Kd5 {[%clk 0:00:07]} 50. h5 {[%clk 0:00:06]}  Ne5 {[%clk 0:00:06]} 51. Rxa3 {[%clk 0:00:05]}  Kc4 {[%clk 0:00:06]} 52. Ke4 {[%clk 0:00:02]}  Nc6 {[%clk 0:00:05]} 53. Ra6 {[%clk 0:00:02]}  Nxb4 {[%clk 0:00:05]} 54. cxb4 {[%clk 0:00:01]}  Kxb4 {[%clk 0:00:05]} 55. Nb7 {[%clk 0:00:02]}  Rxb7 {[%clk 0:00:04]} 56. Rd6 {[%clk 0:00:03]}  Rb8 {[%clk 0:00:04]} 57. Rd7 {[%clk 0:00:03]}  Kc5 {[%clk 0:00:04]} 58. Rxg7 {[%clk 0:00:04]}  b4 {[%clk 0:00:05]} 59. Rf7 {[%clk 0:00:05]}  b3 {[%clk 0:00:05]} 60. Rxf6 {[%clk 0:00:05]}  b2 {[%clk 0:00:05]} 61. e7 {[%clk 0:00:06]}  b1=Q+ {[%clk 0:00:06]} 62. Ke5 {[%clk 0:00:06]}  Qe1+ {[%clk 0:00:05]} 63. Kf4 {[%clk 0:00:07]}  Qh4+ {[%clk 0:00:04]} 64. Ke5 {[%clk 0:00:07]}  Qxh5 {[%clk 0:00:04]} 65. Re6 {[%clk 0:00:08]}  Re8 {[%clk 0:00:03]} 66. Kf6 {[%clk 0:00:09]}  Qh6+ {[%clk 0:00:03]} 67. Kf7 {[%clk 0:00:09]}  Qh5+ {[%clk 0:00:03]} 68. Kf6 {[%clk 0:00:09]}  Qh6+ {[%clk 0:00:02]} 69. Kf7 {[%clk 0:00:10]}  Qh5+ {[%clk 0:00:03]} 70. Kf6 {[%clk 0:00:10]} 1/2-1/2


[Site "https://www.chess.com"]

[Event "Titled Tuesday Blitz June 6 Late 2023"]
[White "Buchenau, Frank"]
[Black "Hartikainen, Jarmo"]
[WhiteFideId "4604350"]
[BlackFideId "503134"]
[WhiteElo "2157"]
[BlackElo "2136"]
[Result "1-0"]
[Round "7"]
[TimeControl "180+2"]
[Date "2023.06.07"]
[WhiteClock "0:02:06"]
[BlackClock "0:00:28"]
[Board "122"]

1. e4 {[%clk 0:02:59]}  c5 {[%clk 0:02:59]} 2. Nf3 {[%clk 0:02:59]}  Nc6 {[%clk 0:02:59]} 3. Bb5 {[%clk 0:02:59]}  g6 {[%clk 0:02:58]} 4. Bxc6 {[%clk 0:02:59]}  dxc6 {[%clk 0:02:59]} 5. d3 {[%clk 0:02:57]}  Bg4 {[%clk 0:02:58]} 6. Nbd2 {[%clk 0:02:55]}  Bg7 {[%clk 0:02:58]} 7. h3 {[%clk 0:02:54]}  Bxf3 {[%clk 0:02:57]} 8. Qxf3 {[%clk 0:02:54]}  e5 {[%clk 0:02:57]} 9. O-O {[%clk 0:02:52]}  Nf6 {[%clk 0:02:56]} 10. Nc4 {[%clk 0:02:51]}  Qe7 {[%clk 0:02:49]} 11. Bg5 {[%clk 0:02:48]}  h6 {[%clk 0:02:47]} 12. Bh4 {[%clk 0:02:48]}  b5 {[%clk 0:02:15]} 13. Ne3 {[%clk 0:02:47]}  Qe6 {[%clk 0:02:10]} 14. a4 {[%clk 0:02:43]}  O-O {[%clk 0:01:38]} 15. axb5 {[%clk 0:02:39]}  cxb5 {[%clk 0:01:38]} 16. Bxf6 {[%clk 0:02:39]}  Bxf6 {[%clk 0:01:24]} 17. Nd5 {[%clk 0:02:34]}  Bd8 {[%clk 0:01:03]} 18. Qe3 {[%clk 0:02:33]}  Kg7 {[%clk 0:00:50]} 19. Qxc5 {[%clk 0:02:32]}  a6 {[%clk 0:00:45]} 20. Qe3 {[%clk 0:02:18]}  Rc8 {[%clk 0:00:41]} 21. c3 {[%clk 0:02:16]}  f5 {[%clk 0:00:40]} 22. f4 {[%clk 0:02:13]}  exf4 {[%clk 0:00:38]} 23. Nxf4 {[%clk 0:02:12]}  Qb6 {[%clk 0:00:32]} 24. Qxb6 {[%clk 0:02:06]}  Bxb6+ {[%clk 0:00:31]} 25. d4 {[%clk 0:02:06]}  fxe4 {[%clk 0:00:29]} 26. Ne6+ {[%clk 0:02:06]}  Kg8 {[%clk 0:00:28]} 27. Rxf8+ {[%clk 0:02:05]}  Rxf8 {[%clk 0:00:28]} 28. Nxf8 {[%clk 0:02:05]}  Kxf8 {[%clk 0:00:28]} 29. Rxa6 {[%clk 0:02:06]} 1-0


[Site "https://www.chess.com"]

[Event "Titled Tuesday Blitz June 6 Late 2023"]
[White "Torres Dominguez, David"]
[Black "Ozalp, Burak"]
[WhiteFideId "2220857"]
[BlackFideId "6314210"]
[WhiteElo "1999"]
[BlackElo "2106"]
[Result "0-1"]
[Round "7"]
[TimeControl "180+2"]
[Date "2023.06.07"]
[WhiteClock "0:00:06"]
[BlackClock "0:00:17"]
[Board "123"]

1. e4 {[%clk 0:03:00]}  c5 {[%clk 0:03:00]} 2. Nc3 {[%clk 0:02:58]}  a6 {[%clk 0:02:58]} 3. Nf3 {[%clk 0:02:57]}  b5 {[%clk 0:02:51]} 4. d4 {[%clk 0:02:54]}  cxd4 {[%clk 0:02:52]} 5. Nxd4 {[%clk 0:02:54]}  Bb7 {[%clk 0:02:52]} 6. Bd3 {[%clk 0:02:54]}  e6 {[%clk 0:02:46]} 7. O-O {[%clk 0:02:53]}  Qb6 {[%clk 0:02:41]} 8. Nb3 {[%clk 0:02:47]}  Nf6 {[%clk 0:02:40]} 9. Be3 {[%clk 0:02:44]}  Qc7 {[%clk 0:02:40]} 10. Re1 {[%clk 0:02:38]}  Be7 {[%clk 0:02:34]} 11. h3 {[%clk 0:02:19]}  O-O {[%clk 0:02:30]} 12. Qd2 {[%clk 0:02:18]}  b4 {[%clk 0:02:22]} 13. Na4 {[%clk 0:02:16]}  Nxe4 {[%clk 0:02:19]} 14. Bxe4 {[%clk 0:02:12]}  Bxe4 {[%clk 0:02:20]} 15. Nb6 {[%clk 0:01:47]}  Ra7 {[%clk 0:01:57]} 16. Nxd7 {[%clk 0:01:31]}  Nxd7 {[%clk 0:01:42]} 17. Bxa7 {[%clk 0:01:29]}  Bxg2 {[%clk 0:01:34]} 18. Kxg2 {[%clk 0:01:23]}  Qxa7 {[%clk 0:01:35]} 19. f3 {[%clk 0:01:20]}  Nf6 {[%clk 0:01:31]} 20. Rad1 {[%clk 0:01:16]}  Nd5 {[%clk 0:01:31]} 21. Qd4 {[%clk 0:01:04]}  Qb8 {[%clk 0:01:26]} 22. h4 {[%clk 0:00:38]}  Bf6 {[%clk 0:01:19]} 23. Qg4 {[%clk 0:00:26]}  h5 {[%clk 0:01:18]} 24. Qe4 {[%clk 0:00:23]}  Nf4+ {[%clk 0:01:10]} 25. Kh1 {[%clk 0:00:21]}  Ng6 {[%clk 0:01:11]} 26. Rg1 {[%clk 0:00:19]}  Nxh4 {[%clk 0:01:05]} 27. Nd4 {[%clk 0:00:10]}  Qe5 {[%clk 0:00:33]} 28. Qxe5 {[%clk 0:00:09]}  Bxe5 {[%clk 0:00:34]} 29. Nc6 {[%clk 0:00:09]}  Bxb2 {[%clk 0:00:26]} 30. Nxb4 {[%clk 0:00:09]}  a5 {[%clk 0:00:23]} 31. Nd3 {[%clk 0:00:01]}  Bf6 {[%clk 0:00:21]} 32. Rgf1 {[%clk 0:00:02]}  Nf5 {[%clk 0:00:21]} 33. Kh2 {[%clk 0:00:02]}  Rc8 {[%clk 0:00:21]} 34. Kg2 {[%clk 0:00:03]}  Rxc2+ {[%clk 0:00:21]} 35. Rf2 {[%clk 0:00:04]}  Ne3+ {[%clk 0:00:21]} 36. Kg1 {[%clk 0:00:03]}  Rxf2 {[%clk 0:00:17]} 37. Nxf2 {[%clk 0:00:02]}  Nxd1 {[%clk 0:00:18]} 38. Nxd1 {[%clk 0:00:03]}  g5 {[%clk 0:00:17]} 39. Kf1 {[%clk 0:00:04]}  Kg7 {[%clk 0:00:18]} 40. Ke2 {[%clk 0:00:04]}  Kg6 {[%clk 0:00:19]} 41. Kd3 {[%clk 0:00:05]}  g4 {[%clk 0:00:19]} 42. fxg4 {[%clk 0:00:05]}  hxg4 {[%clk 0:00:20]} 43. Nf2 {[%clk 0:00:06]}  Kf5 {[%clk 0:00:18]} 44. Ne4 {[%clk 0:00:05]}  Be5 {[%clk 0:00:17]} 45. Nd2 {[%clk 0:00:03]}  g3 {[%clk 0:00:17]} 46. Ke2 {[%clk 0:00:04]}  Kg4 {[%clk 0:00:16]} 47. Kf1 {[%clk 0:00:03]}  f5 {[%clk 0:00:17]} 48. Kg2 {[%clk 0:00:04]}  f4 {[%clk 0:00:17]} 49. Nf3 {[%clk 0:00:04]}  Bf6 {[%clk 0:00:16]} 50. a4 {[%clk 0:00:05]}  e5 {[%clk 0:00:17]} 51. Nd2 {[%clk 0:00:05]}  e4 {[%clk 0:00:17]} 52. Nxe4 {[%clk 0:00:06]}  f3+ {[%clk 0:00:16]} 53. Kg1 {[%clk 0:00:06]}  Bd4+ {[%clk 0:00:16]} 54. Kf1 {[%clk 0:00:05]}  g2+ {[%clk 0:00:16]} 55. Ke1 {[%clk 0:00:06]}  g1=Q+ {[%clk 0:00:16]} 56. Kd2 {[%clk 0:00:06]}  Qe3+ {[%clk 0:00:17]} 0-1


[Site "https://www.chess.com"]

[Event "Titled Tuesday Blitz June 6 Late 2023"]
[White "Shapiro, Daniel"]
[Black "Tsukerman, Julia"]
[WhiteFideId "2001780"]
[BlackFideId "2621649"]
[WhiteElo "2366"]
[BlackElo "1667"]
[Result "0-1"]
[Round "7"]
[TimeControl "180+2"]
[Date "2023.06.07"]
[WhiteClock "0:00:01"]
[BlackClock "0:00:11"]
[Board "124"]

1. d4 {[%clk 0:03:00]}  d5 {[%clk 0:02:59]} 2. c4 {[%clk 0:03:00]}  e6 {[%clk 0:02:59]} 3. Nf3 {[%clk 0:02:59]}  Nf6 {[%clk 0:02:58]} 4. g3 {[%clk 0:03:00]}  Be7 {[%clk 0:02:57]} 5. Bg2 {[%clk 0:03:00]}  O-O {[%clk 0:02:57]} 6. O-O {[%clk 0:03:01]}  dxc4 {[%clk 0:02:57]} 7. Ne5 {[%clk 0:03:00]}  Nc6 {[%clk 0:02:57]} 8. Bxc6 {[%clk 0:03:00]}  bxc6 {[%clk 0:02:57]} 9. Nxc6 {[%clk 0:03:01]}  Qe8 {[%clk 0:02:57]} 10. Nxe7+ {[%clk 0:03:02]}  Qxe7 {[%clk 0:02:58]} 11. Qa4 {[%clk 0:03:02]}  e5 {[%clk 0:02:57]} 12. dxe5 {[%clk 0:03:02]}  Qxe5 {[%clk 0:02:57]} 13. Qxc4 {[%clk 0:03:02]}  Be6 {[%clk 0:02:45]} 14. Qd3 {[%clk 0:02:47]}  Rfd8 {[%clk 0:02:41]} 15. Qe3 {[%clk 0:02:40]}  Qh5 {[%clk 0:02:37]} 16. f3 {[%clk 0:02:37]}  Bh3 {[%clk 0:02:08]} 17. Re1 {[%clk 0:02:36]}  Re8 {[%clk 0:02:01]} 18. Qf2 {[%clk 0:01:53]}  Re7 {[%clk 0:01:40]} 19. Nc3 {[%clk 0:01:52]}  Rae8 {[%clk 0:01:39]} 20. e4 {[%clk 0:01:19]}  c6 {[%clk 0:01:25]} 21. Be3 {[%clk 0:01:03]}  a6 {[%clk 0:01:18]} 22. Rad1 {[%clk 0:01:01]}  Nd7 {[%clk 0:01:13]} 23. g4 {[%clk 0:00:52]}  Bxg4 {[%clk 0:01:02]} 24. fxg4 {[%clk 0:00:51]}  Qxg4+ {[%clk 0:01:03]} 25. Qg3 {[%clk 0:00:45]}  Qe6 {[%clk 0:00:46]} 26. Rd6 {[%clk 0:00:41]}  Qc4 {[%clk 0:00:43]} 27. Red1 {[%clk 0:00:40]}  Ne5 {[%clk 0:00:38]} 28. Bd4 {[%clk 0:00:35]}  Ng6 {[%clk 0:00:35]} 29. h4 {[%clk 0:00:29]}  h5 {[%clk 0:00:31]} 30. Qg5 {[%clk 0:00:27]}  Qb4 {[%clk 0:00:26]} 31. Rxg6 {[%clk 0:00:13]}  fxg6 {[%clk 0:00:25]} 32. Rd2 {[%clk 0:00:11]}  Re6 {[%clk 0:00:18]} 33. e5 {[%clk 0:00:08]}  Qc4 {[%clk 0:00:18]} 34. Ne4 {[%clk 0:00:06]}  Qc1+ {[%clk 0:00:16]} 35. Kg2 {[%clk 0:00:05]}  Qc4 {[%clk 0:00:16]} 36. Nd6 {[%clk 0:00:04]}  Qd5+ {[%clk 0:00:15]} 37. Kg3 {[%clk 0:00:04]}  Rxd6 {[%clk 0:00:14]} 38. exd6 {[%clk 0:00:03]}  Qxd6+ {[%clk 0:00:15]} 39. Qf4 {[%clk 0:00:02]}  Qe6 {[%clk 0:00:14]} 40. Rf2 {[%clk 0:00:01]}  Qe7 {[%clk 0:00:11]} 41. Bc3 {[%clk 0:00:02]}  Rf8 {[%clk 0:00:11]} 42. Qd4 {[%clk 0:00:02]}  Rxf2 {[%clk 0:00:10]} 43. Kxf2 {[%clk 0:00:02]}  Qf7+ {[%clk 0:00:11]} 44. Kg2 {[%clk 0:00:02]}  Kh7 {[%clk 0:00:10]} 45. Qe3 {[%clk 0:00:02]}  Kg8 {[%clk 0:00:11]} 46. Qg5 {[%clk 0:00:02]}  Kh7 {[%clk 0:00:10]} 47. Qe3 {[%clk 0:00:02]}  Qd5+ {[%clk 0:00:11]} 48. Kg3 {[%clk 0:00:01]}  Qf7 {[%clk 0:00:11]} 49. Qf4 {[%clk 0:00:01]}  Qd5 {[%clk 0:00:10]} 50. Qe5 {[%clk 0:00:01]}  Qd3+ {[%clk 0:00:10]} 51. Kf4 {[%clk 0:00:01]}  Qd7 {[%clk 0:00:11]} 0-1


[Site "https://www.chess.com"]